Cogmind - Beta 17 @@@ ROGUE MODE // 2026.07.01 @ 23:30:13 // Winter2019/RPGLIKE Player: chai Result: Destroyed by G-47 Trooper with Particle Gun Performance ------------- Evolutions (2) 1000 Regions Visited (6) 1200 Robots Destroyed (37) 185 Value Destroyed (861) 861 Prototype IDs (27) 540 Alien Tech Used (0) 0 Bonus (500) 500 TOTAL SCORE: 4286 Bonus ------- Entered Garrisons 200 Aligned with FarCom 300 Cogmind --------- Core Integrity 0/900 Matter 148/300 Energy 150/150 System Corruption 0% Temperature Cool (9) Movement Rolling (95) Location -8/Garrison Parts ------- > --- POWER (1) -------- Light Angular Momentum Engine > --- PROPULSION (2) --- Compact Wheel Armored Wheel > --- UTILITY (4) ------ Improved Targeting Computer Improved Medium Armor Plating Hacking Suite Trap Reconfigurator > --- WEAPON (3) ------- Arc Projector Rocket Launcher Datajack > --- INVENTORY (0) ---- (None) Peak State ------------ > --- POWER ------------ Ion Engine > --- PROPULSION ------- Compact Wheel Compact Wheel > --- UTILITY ---------- Sensor Array ECM Suite > --- WEAPON ----------- AWS/Autocannon > --- INVENTORY -------- (None) [Rating: 35] Favorites ----------- Power Ion Engine Engine Ion Engine Propulsion Compact Wheel Treads Light Treads Leg Aluminum Leg Wheel Compact Wheel Utility ECM Suite Device ECM Suite Processor Improved Targeting Computer Hackware Hacking Suite Protection Improved Medium Armor Plating Weapon Datajack Energy Gun EM Pulse Gun Ballistic Gun Assault Rifle Ballistic Cannon Slug Cannon Launcher Rocket Launcher Special Melee Weapon Datajack Build | -11 -10 -10 -10 -9 -8 -8 ------- Run | Yrd Mat Min Exi Min Mat Gar Slots Evolved 6 | 3 1 . . . 2 . Power . | . . . . . . . Propulsion 1 | 1 . . . . . . Utility 3 | 1 . . . . 2 . Weapon 2 | 1 1 . . . . . Parts Attached 27 | 8 6 . 3 6 4 . Power 2 | 1 . . . 1 . . Engine 2 | 1 . . . 1 . . Core . | . . . . . . . Reactor . | . . . . . . . Propulsion 8 | 5 2 . . 1 . . Treads 1 | 1 . . . . . . Leg 2 | 2 . . . . . . Wheel 5 | 2 2 . . 1 . . Hover . | . . . . . . . Flight . | . . . . . . . Utility 8 | . 2 . 2 1 3 . Device 5 | . 2 . 2 1 . . Storage . | . . . . . . . Processor 1 | . . . . . 1 . Hackware 1 | . . . . . 1 . Protection 1 | . . . . . 1 . Artifact . | . . . . . . . Weapon 9 | 2 2 . 1 3 1 . Energy Gun 2 | 1 . . . . 1 . Energy Cannon . | . . . . . . . Ballistic Gun 1 | 1 . . . . . . Ballistic Cannon 2 | . . . 1 1 . . Launcher 3 | . 1 . . 2 . . Special Weapon . | . . . . . . . Impact Weapon . | . . . . . . . Slashing Weapon . | . . . . . . . Piercing Weapon . | . . . . . . . Special Melee Weapon 1 | . 1 . . . . . Unidentified Prototypes . | . . . . . . . Parts Lost 1 | . . . . 1 . . Power . | . . . . . . . Propulsion . | . . . . . . . Utility . | . . . . . . . Weapon 1 | . . . . 1 . . Highest Loss Streak 1 | . . . . 1 . . To Critical Strikes . | . . . . . . . Average Backups . | . . . . . . . Power . | . . . . . . . Propulsion . | . . . . . . . Utility . | . . . . . . . Weapon . | . . . . . . . Tool/Special . | . . . . . . . Unused Backups . | . . . . . . . Power . | . . . . . . . Propulsion . | . . . . . . . Utility . | . . . . . . . Weapon . | . . . . . . . Tool/Special . | . . . . . . . Average Slot Usage (%) 98 | . 96 100 95 98 99 98 Engine 11 | . 12 12 12 12 10 8 Wheel 23 | . 20 25 25 25 21 20 Device 22 | . 23 25 24 25 11 10 Processor 1 | . . . . . 10 10 Hackware 1 | . . . . . 5 10 Protection 1 | . . . . . 6 10 Energy Gun 7 | . 12 12 10 3 6 10 Ballistic Cannon 3 | . . . . 7 4 . Launcher 11 | . 11 12 9 11 10 10 Special Melee Weapon 11 | . 8 12 11 12 10 9 Peak Build Rating 35 | 5 8 8 35 26 33 33 Average Rating 17 | 4 7 8 11 22 30 32 On Entrance 13 | . 5 8 8 16 26 33 Avg Prop Armor Cover (%) 12 | 12 . . . . . . Naked Turns . | . . . . . . . Heaviest Build 26 | 9 14 14 14 24 26 26 Greatest Support 32 | 20 32 32 32 32 28 28 Greatest Overweight (x) . | . . . . . . . Average Overweight (x) . | . . . . . . . Largest Inventory Capacity . | . . . . . . . Average Capacity . | . . . . . . . Most Carried . | . . . . . . . Average Carried . | . . . . . . . Final Capacity . | . . . . . . . Final Carried . | . . . . . . . Class Distribution -------------------- 100% | Mutant Dominant Class ---------------- Mutant | -10/Materials Mutant | -10/Mines Mutant | -10/Exiles Mutant | -9/Mines Mutant | -8/Materials Mutant | -8/Garrison Resources | -11 -10 -10 -10 -9 -8 -8 ----------- Run | Yrd Mat Min Exi Min Mat Gar Matter Collected 828 | 280 63 29 . 419 32 5 Remotely . | . . . . . . . Salvage Created 646 | . 272 26 . 263 85 . Parts 62 | . 18 9 . 20 5 10 Haulers Intercepted . | . . . . . . . Recyclers Shooed 1 | . . . . 1 . . Parts Field Recycled . | . . . . . . . Retrieved Matter . | . . . . . . . Parts Self-Destructed . | . . . . . . . Prevented . | . . . . . . . Parts Restored . | . . . . . . . Kills | -11 -10 -10 -10 -9 -8 -8 ------- Run | Yrd Mat Min Exi Min Mat Gar Combat Hostiles Destroyed 49 | . 4 5 . 34 3 3 Guns 10 | . 4 1 . 3 1 1 Cannons 1 | . . . . 1 . . AOE 37 | . . 3 . 30 2 2 Classes Destroyed 11 | . 4 1 . 3 1 2 Worker 2 | . 1 . . 1 . . Builder 1 | . . . . . 1 . Recycler 2 | . . . . 2 . . Operator 1 | . 1 . . . . . Watcher 1 | . 1 . . . . . Swarmer 14 | . . 3 . 11 . . Cutter 2 | . . . . . . 2 Grunt 11 | . 4 2 . 2 3 . Sentry 1 | . . . . . . 1 Demolisher 2 | . . . . 2 . . Assembled 19 | . . . . 19 . . Best Kill Streak 22 | . 3 3 . 22 2 3 Combat Bots Only 19 | . 2 3 . 19 2 3 Max Kills in Single Turn 10 | . 1 2 . 10 1 1 Gunslinging . | . . . . . . . Exploded 10 | . . 2 . 10 1 1 Melee . | . . . . . . . Uniques/NPCs Destroyed . | . . . . . . . Combat | -11 -10 -10 -10 -9 -8 -8 -------- Run | Yrd Mat Min Exi Min Mat Gar Hostile Shots Fired 137 | . 20 16 . 56 6 39 Missed 49 | . 7 5 . 25 1 11 Hits 88 | . 13 11 . 31 5 28 Melee 2 | . . . . . . 2 Projectile 86 | . 13 11 . 31 5 26 AOE 13 | . . . . 11 . 2 Critical Strikes 4 | . . . . 1 . 3 Damage Taken 1781 | . 242 160 . 729 70 580 Core 1351 | . 209 130 . 595 46 371 Absorbed by Shields 12 | . . . . 4 . 8 Redirected to Core 1023 | . 114 108 . 473 32 296 Core Remaining (%) 65 | 100 . . . 30 . . Volleys Fired 103 | . 22 20 . 42 12 7 Largest 2 | . 2 1 . 2 2 2 Hottest 88 | . 60 40 . 73 88 88 Shots Fired 109 | . 23 20 . 45 13 8 Gun 63 | . 23 17 . 13 5 5 Cannon 8 | . . . . 8 . . Launcher 38 | . . 3 . 24 8 3 Special . | . . . . . . . Kinetic 9 | . 1 . . 8 . . Thermal . | . . . . . . . Explosive 38 | . . 3 . 24 8 3 Electromagnetic 62 | . 22 17 . 13 5 5 Robot Hit Streak 8 | . 7 3 . 8 2 4 Robot Miss Streak 5 | . 3 5 . 3 2 1 Penetration Max . | . . . . . . . Secondary Targets . | . . . . . . . Shots Hit Robots 81 | . 25 10 1 32 6 7 Core Hits 99 | . 11 5 . 63 14 6 Critical Kills 1 | . . . . 1 . . Critical Parts Destroyed 1 | . . . . 1 . . Critical Strikes 3 | . . . . 3 . . Destroy 2 | . . . . 2 . . Corrupt 1 | . . . . 1 . . Melee Attacks 26 | . 13 . 1 10 1 1 Impact . | . . . . . . . Slashing . | . . . . . . . Piercing . | . . . . . . . Sneak Attacks 16 | . 6 . 1 9 . . Combat Hostiles . | . . . . . . . Follow-up Attacks . | . . . . . . . Damage Inflicted 3443 | . 336 305 . 2140 495 167 Guns 544 | . 256 120 . 90 38 40 Cannons 117 | . . . . 117 . . Explosions 2782 | . 80 185 . 1933 457 127 Melee . | . . . . . . . Ramming . | . . . . . . . Kinetic 129 | . 12 . . 117 . . Thermal 143 | . 80 . . 63 . . Explosive 2639 | . . 185 . 1870 457 127 Electromagnetic 532 | . 244 120 . 90 38 40 Impact . | . . . . . . . Slashing . | . . . . . . . Piercing . | . . . . . . . Highest Corruption . | . . . . . . . Average Corruption . | . . . . . . . Corruption Purged . | . . . . . . . Corruption Blocked . | . . . . . . . Overload Shots . | . . . . . . . Overflow Damage 62 | . 2 . . 60 . . Projectiles . | . . . . . . . Explosions 62 | . 2 . . 60 . . Melee . | . . . . . . . Knockbacks 1 | . . . . 1 . . Impact . | . . . . . . . Kinetic 1 | . . . . 1 . . Secondary . | . . . . . . . Self-Inflicted Damage 195 | . 54 40 . 67 . 34 Shots 6 | . 1 1 . 3 . 1 Rammed . | . . . . . . . Targets Rammed . | . . . . . . . Kicked . | . . . . . . . Crushed . | . . . . . . . Highest Temperature 48 | . 48 36 . 4 33 19 Average Temperature 20 | . 18 27 . 4 20 5 Received Heat Transfer 401 | . 99 36 . 56 45 165 Siege Activations . | . . . . . . . Martial Activations . | . . . . . . . Shielding Activations . | . . . . . . . Robots Disrupted . | . . . . . . . Combat Hostiles . | . . . . . . . Robots Corrupted 1 | . . 1 . . . . Combat Hostiles 1 | . . 1 . . . . Parts Fried 1 | . 1 . . . . . Impact Corruptions . | . . . . . . . Robots Melted . | . . . . . . . Combat Hostiles . | . . . . . . . Parts Melted . | . . . . . . . Heat Transferred 150 | . 100 . . 50 . . Parts Sabotaged . | . . . . . . . Parts Stolen . | . . . . . . . Parts Stripped . | . . . . . . . Power Chain Reactions 2 | . 1 . . 1 . . Alert | -11 -10 -10 -10 -9 -8 -8 ------- Run | Yrd Mat Min Exi Min Mat Gar Maximum Alert Level . | . . . . . . . Low Security (%) 100 | 100 100 100 . 100 100 100 Level 1 . | . . . . . . . Level 2 . | . . . . . . . Level 3 . | . . . . . . . Level 4 . | . . . . . . . Level 5 . | . . . . . . . High Security . | . . . . . . . Max Security . | . . . . . . . Peak Influence 178 | . 63 72 . 178 78 115 Initial 43 | . . 6 . . 43 24 Average 48 | . 12 27 . 68 41 99 Influence Increases 1008 | . 125 143 . 515 134 91 Destroy 0b10 Robot/C 600 | . 80 100 . 300 60 60 Destroy 0b10 Robot/NC 35 | . 15 . . 15 5 . Destroy Leader 112 | . 22 20 . 50 10 10 Successful Hack 16 | . . . . . 16 . Disable Machine 30 | . . . . 30 . . Destroy Structure 215 | . 8 23 . 120 43 21 Influence Decreases 893 | . 107 161 . 403 209 13 Entered New Map 94 | . . 12 . . 69 13 Time Decay 782 | . 107 149 . 386 140 . Lost Part 10 | . . . . 10 . . Lost Ally 7 | . . . . 7 . . Squads Dispatched 3 | . 1 . . . 2 . Investigation 1 | . . . . . 1 . Extermination . | . . . . . . . Reinforcement 2 | . 1 . . . 1 . Assault . | . . . . . . . Garrison . | . . . . . . . Intercept . | . . . . . . . Searches Triggered . | . . . . . . . Construction Impeded . | . . . . . . . Haulers Reinforced . | . . . . . . . Active Scanning Responses . | . . . . . . . Cargo Convoy Interrupts . | . . . . . . . Stealth | -11 -10 -10 -10 -9 -8 -8 --------- Run | Yrd Mat Min Exi Min Mat Gar Distress Signals 2 | . 2 . . . . . Communications Jammed . | . . . . . . . Distress Signals . | . . . . . . . Times Spotted 71 | . 22 4 . 32 3 10 Peak Tracking Total 20 | . 4 3 . 20 2 7 Tactical Retreats 7 | . 5 . . 2 . . ECM-based Alert Blocks 7 | . 7 . . . . . Traps | -11 -10 -10 -10 -9 -8 -8 ------- Run | Yrd Mat Min Exi Min Mat Gar Traps Triggered 3 | . 1 . . . 1 1 Indirectly . | . . . . . . . Trap Hack Attempts . | . . . . . . . Triggered . | . . . . . . . Disarmed . | . . . . . . . Reprogrammed . | . . . . . . . Reused . | . . . . . . . Traps Reconfigurated 3 | . . . . . . 3 Traps Extracted . | . . . . . . . Installed . | . . . . . . . Triggered . | . . . . . . . Machines | -11 -10 -10 -10 -9 -8 -8 ---------- Run | Yrd Mat Min Exi Min Mat Gar Machines Disabled 2 | . . . . 2 . . Max in Single Turn 1 | . . . . 1 . . Machines Repaired . | . . . . . . . Machines Dismantled . | . . . . . . . Machines Sabotaged . | . . . . . . . Overloaded Fab Kills . | . . . . . . . Hacking | -11 -10 -10 -10 -9 -8 -8 --------- Run | Yrd Mat Min Exi Min Mat Gar Machines Accessed 13 | . 2 . 5 . 6 . Terminals 7 | . 2 . . . 5 . Fabricators . | . . . . . . . Repair Stations . | . . . . . . . Recycling Units . | . . . . . . . Scanalyzers . | . . . . . . . Garrison Access 1 | . . . . . 1 . Total Hacks 73 | . 5 . 50 . 18 . Successful 60 | . . . 50 . 10 . Failed 13 | . 5 . . . 8 . Catastrophic 3 | . 1 . . . 2 . Database Lockouts . | . . . . . . . Manual 1 | . . . 1 . . . Terminals 22 | . 5 . . . 17 . Fabricators . | . . . . . . . Repair Stations . | . . . . . . . Recycling Units . | . . . . . . . Scanalyzers . | . . . . . . . Garrison Access 1 | . . . . . 1 . Terminal Hacks 59 | . . . 50 . 9 . Record 50 | . . . 49 . 1 . Prototype ID Bank 1 | . . . . . 1 . Emergency Access Points 1 | . . . . . 1 . Alert Level 3 | . . . . . 3 . Locate Traps 1 | . . . . . 1 . Hauler Manifests 1 | . . . . . 1 . Zone Layout 1 | . . . . . 1 . Proto ID Catalog 1 | . . . 1 . . . Fabricator Hacks . | . . . . . . . Repair Station Hacks . | . . . . . . . Recycling Unit Hacks . | . . . . . . . Scanalyzer . | . . . . . . . Garrison Access Hacks 1 | . . . . . 1 . Unlock Access 1 | . . . . . 1 . Unauthorized Hacks . | . . . . . . . Terminals . | . . . . . . . Fabricators . | . . . . . . . Repair Stations . | . . . . . . . Recycling Units . | . . . . . . . Scanalyzers . | . . . . . . . Garrison Access . | . . . . . . . Data Cores Recovered . | . . . . . . . Used . | . . . . . . . Hacking Detections 7 | . 2 . . . 5 . Full Trace Events 1 | . . . . . 1 . Feedback Events . | . . . . . . . Feedback Blocked . | . . . . . . . Robot Schematics Acquired . | . . . . . . . Robots Built . | . . . . . . . Authchips . | . . . . . . . Time . | . . . . . . . Total Robot Build Rating . | . . . . . . . Part Schematics Acquired . | . . . . . . . Parts Built . | . . . . . . . Authchips . | . . . . . . . Time . | . . . . . . . Total Part Build Rating . | . . . . . . . Part Studies Acquired . | . . . . . . . Parts Repaired . | . . . . . . . Time . | . . . . . . . Parts Recycled . | . . . . . . . Recycled Matter . | . . . . . . . Retrieved Matter . | . . . . . . . Retrieved Components . | . . . . . . . Parts Scanalyzed . | . . . . . . . Part Schematics Acquired . | . . . . . . . Parts Damaged . | . . . . . . . Bothacking | -11 -10 -10 -10 -9 -8 -8 ------------ Run | Yrd Mat Min Exi Min Mat Gar Used RIF Installer . | . . . . . . . Robots Hacked 11 | . 6 . 1 3 . 1 Non-combat 8 | . 5 . 1 2 . . Combat 3 | . 1 . . 1 . 1 Robot Hacks Applied 11 | . 6 . 1 3 . 1 parse_system 8 | . 4 . 1 2 . 1 no_distress 2 | . 1 . . 1 . . find_recycling 1 | . 1 . . . . . Relay Couplers Released . | . . . . . . . Fabnet Peak Effective % . | . . . . . . . Robots Rewired . | . . . . . . . Allies Hacked . | . . . . . . . Hacks Repelled . | . . . . . . . Allies | -11 -10 -10 -10 -9 -8 -8 -------- Run | Yrd Mat Min Exi Min Mat Gar Total Allies 3 | . . 2 . 1 . . Largest Group 2 | . . 2 2 1 . . Highest-Rated Group 41 | . . 41 41 31 . . Highest-Rated Ally 31 | . . 31 31 31 . . Total Orders 1 | . . . 1 . . . RETURN 1 | . . . 1 . . . Ally Attacks 2 | . . . . 2 . . Total Damage 21 | . . . . 21 . . Kills . | . . . . . . . Allies Corrupted . | . . . . . . . Allies Melted . | . . . . . . . Intel | -11 -10 -10 -10 -9 -8 -8 ------- Run | Yrd Mat Min Exi Min Mat Gar Active Infowar (turns) 1737 | . 421 375 274 667 . . Sensors 938 | . 421 375 142 . . . ECM 1712 | . 396 375 274 667 . . Robot Analysis Total . | . . . . . . . Derelict Logs Recovered 2 | . . 1 . 1 . . Drone Launches 1 | . . . 1 . . . Drone Recoveries 1 | . . . 1 . . . Exploration | -11 -10 -10 -10 -9 -8 -8 ------------- Run | Yrd Mat Min Exi Min Mat Gar Turns Passed 2683 | 52 447 375 274 1091 298 146 Spaces Moved 2223 | 40 290 315 259 929 274 116 Core 5 | 5 . . . . . . Treads . | . . . . . . . Legs 71 | 23 48 . . . . . Wheels 2147 | 12 242 315 259 929 274 116 Hover . | . . . . . . . Flight . | . . . . . . . Fastest Speed 50 | 50 100 100 100 95 95 95 Average Speed 98 | 99 103 100 100 97 95 95 Slowest Speed 120 | 120 120 100 100 100 95 95 Overloaded Moves . | . . . . . . . Propulsion Burnouts . | . . . . . . . Robots Hopped . | . . . . . . . Potential Cave-ins . | . . . . . . . Cave-ins Triggered . | . . . . . . . Exploration Rate (%) 48 | 3 48 77 60 99 21 31 Regions Visited 6 Branch Regions 3 Pre-discovered Areas 3 | . . 2 1 . . . Known Exits Taken 1 | . . . . . 1 . Unknown Exits Taken 5 | 1 1 1 1 1 . . Scrap Searched 4 | . . 1 . 3 . . Spaces Dug 18 | . . 6 . 12 . . Terrain Destroyed 257 | . 7 23 . 164 50 13 Melee . | . . . . . . . Projectile 5 | . . . . 5 . . AOE 252 | . 7 23 . 159 50 13 Terrain Rammed . | . . . . . . . Walls Destroyed . | . . . . . . . Machines Disabled . | . . . . . . . Actions | -11 -10 -10 -10 -9 -8 -8 --------- Run | Yrd Mat Min Exi Min Mat Gar Total 2586 | 50 406 355 273 1063 297 142 Wait 157 | . 72 12 2 62 5 4 Move 2217 | 39 289 314 258 928 273 116 Hop . | . . . . . . . Pick Up . | . . . . . . . Fast Attach 29 | 8 6 . 6 3 4 2 Attach . | . . . . . . . Detach . | . . . . . . . Swap 3 | . . . . 3 . . Drop 20 | 3 3 . 6 5 2 1 Fire 103 | . 22 20 . 42 12 7 Melee 26 | . 13 . 1 10 1 1 Ram . | . . . . . . . Kick . | . . . . . . . Crush . | . . . . . . . Escape Stasis 8 | . . . . . . 8 Rewire . | . . . . . . . Trap . | . . . . . . . Miscellaneous 23 | . 1 9 . 10 . 3 Route ------- -11/Scrapyard -10/Materials (discovered 2 exits: [*Mat] / [*Min]) -10/Mines (discovered 2 exits: [*Mat] / *Exi) -10/Exiles -9/Mines (discovered 2 exits: *Mat x2) -8/Materials (discovered 3 exits: Fac / [Sto] / Gar) -8/Garrison History --------- Turn | Location | Event 1 | -11/Scrapyard | Upgraded with Propulsion slot (x1) 1 | -11/Scrapyard | Upgraded with Utility slot (x1) 1 | -11/Scrapyard | Upgraded with Weapon slot (x1) 10 | -11/Scrapyard | Discovered new exit (range 16) 53 | -11/Scrapyard | Entered Materials 170 | -10/Materials | Upgraded with Weapon slot (x1) 237 | -10/Materials | Discovered new exit (range 12) 306 | -10/Materials | Build established: Mutant 479 | -10/Materials | Discovered new exit (range 14) 500 | -10/Materials | Entered Mines 736 | -10/Mines | Reached level 2 754 | -10/Mines | Learned location of Storage (-8) 831 | -10/Mines | Discovered new exit (range 15) 857 | -10/Mines | Deemed a non-threat by the Exiles lab entrance 857 | -10/Mines | Discovered new exit (range 5) 875 | -10/Mines | Entered Exiles 875 | -10/Exiles | Accompanied by 2 allies 901 | -10/Exiles | Met 8R-AWN 905 | -10/Exiles | Led the pair of lost Derelicts to a safe place 919 | -10/Exiles | Met EX-HEX 946 | -10/Exiles | Met EX-BIN 962 | -10/Exiles | Aligned with FarCom system 963 | -10/Exiles | Given EX-Vault access code 1002 | -10/Exiles | Opened EX-Vault 1011 | -10/Exiles | Found AWS/Autocannon 1018 | -10/Exiles | Found Supersonic Drone Bay 1045 | -10/Exiles | Found Trap Reconfigurator 1058 | -10/Exiles | Exiles lab attacked by MAIN.C 1109 | -10/Exiles | Learned location of Zion (-6) 1139 | -10/Exiles | Discovered new exit (range 12) 1149 | -10/Exiles | Left Exiles lab with Trap Reconfigurator 1149 | -10/Exiles | Entered Mines 1229 | -9/Mines | Received a Mining Laser from a helpful Derelict 1267 | -9/Mines | A weapon hastily lodged in a ceiling crevice suddenly fell to the ground 1331 | -9/Mines | Learned location of 1 exit from Materials 1359 | -9/Mines | Received a Rocket Launcher from a helpful Derelict 1366 | -9/Mines | Assembled infested the area 1423 | -9/Mines | Destroyed 19 combat bots 1428 | -9/Mines | Reached level 3 1432 | -9/Mines | Core integrity fell below 50% 1585 | -9/Mines | Discovered new exit (range 8) 1862 | -9/Mines | Discovered new exit (range 4) 2240 | -9/Mines | Entered Materials 2241 | -8/Materials | Identified exit to Factory 2241 | -8/Materials | Core integrity fell below 50% 2242 | -8/Materials | Reached level 4 2327 | -8/Materials | Reached level 5 2330 | -8/Materials | Upgraded with Utility slot (x1) 2360 | -8/Materials | Identified exit to Garrison 2369 | -8/Materials | Upgraded with Utility slot (x1) 2456 | -8/Materials | Discovered new exit (range 15) 2538 | -8/Materials | Entered Garrison 2555 | -8/Garrison | Triggered checkpoint 2562 | -8/Garrison | Core integrity fell below 20% 2626 | -8/Garrison | Spotted B-75 Beast 2626 | -8/Garrison | Spotted B-75 Beast 2668 | -8/Garrison | Triggered checkpoint 2676 | -8/Garrison | Triggered checkpoint 2684 | -8/Garrison | Destroyed by G-47 Trooper with Particle Gun Last Messages --------------- 02664_ Field strength at 80. 02665_ Field strength at 70. 02666_ Field strength at 60. 02667_ Field strength at 50. 02668_ Beams of light sweep through the air. An alarm sounds. 02668_ Field strength at 40. 02669_ C-45 Heavy ARC bursts open, deploying its payload. 02669_ B-36 Bruiser unfolds itself. 02669_ G-47 Trooper unfolds itself. 02669_ Field strength at 26. 02670_ Field strength at 16. 02671_ Field strength at 6. 02672_ Stasis field depleted. 02676_ Beams of light sweep through the air. An alarm sounds. 02676_ Acquired 5 matter. 02677_ Stasis Trap reprogrammed. [Achievement: Achiever] Map ----- +----------------------------------------------------+ | ??????????????????????????# ## ####????????# | | ????????????????########### ## # == ########## | | ????????????????# ! ! | | ????????????????# = = | | ????????????????# = | | ????????????????# ############ ############### | | ????????????????# #?????# ## #?????????????? | | ????????????????# #?????# ## #?????????????? | | ????????????????# ####### ## #?????????????? | | ????????????????# BB# # #?????????????? | | ??????????####### BB####### #######?????????????? | | ??????????# % ## #?????# #???????????????????? | | ########### ## #?????# #???????????????????? | | ####### #####!!! !!!#???????? | | " #???????? | | " % #???????? | | ??#### ## ^ ## ############## #???????? | | ?????# ## ## ###????????????? #???????? | | ?????" BB #???????????????? #???????? | | ?????" BB #??????????????????????????? | | ?????" gg #??????????????????????????? | | ?????" #??????????????????????????? | | ?????# ## #; b ###??????????????????????????? | | ?????# ?# ## g############?????????????????? | | ???? g ##????????????????? | | ??? @ T#????????????????? | | ?? ##????????????????? | | ???####"###""""############# #?????????????????? | | ??????#????g?gg?????????????? #?????????????????? | | ?????????????????????????????? #?????????????????? | | ???????????????????????????????#?????????????????? | | ?????????????????????????????????????????????????? | | ?????????????????????????????????????????????????? | | ?????????????????????????????????????????????????? | | ?????????????????????????????????????????????????? | | ?????????????????????????????????????????????????? | | ?????????????????????????????????????????????????? | | ?????????????????????????????????????????????????? | | ?????????????????????????????????????????????????? | | ?????????????????????????????????????????????????? | | ?????????????????????????????????????????????????? | | ?????????????????????????????????????????????????? | | ?????????????????????????????????????????????????? | | ?????????????????????????????????????????????????? | | ?????????????????????????????????????????????????? | | ?????????????????????????????????????????????????? | | ?????????????????????????????????????????????????? | | ?????????????????????????????????????????????????? | | ?????????????????????????????????????????????????? | | ?????????????????????????????????????????????????? | +----------------------------------------------------+ Best States ------------- Heat Dissipation 37 Energy Generation 18 Energy Capacity 250 Matter Stores 300 Matter Capacity 300 Sight Range 16 Robot Scan Range 14 Terrain Scan Density 10 ECM Strength 1 Armor Coverage 225 Evasion (%) 55 Targeting Accuracy 6 Offensive Hacking 10 Item Schematics ----------------- None Robot Schematics ------------------ None Fabricated ------------ Nothing Repaired ---------- Nothing Studied --------- None Alien Tech Used ----------------- None Achievements -------------- Achiever Analysis Probe Exterminator Hunted I Survived The Infestation Junior Dev Challenges ------------ None RPGLIKE | -11 -10 -10 -10 -9 -8 -8 --------- Run | Yrd Mat Min Exi Min Mat Gar Levels Raised 4 | . . 1 . 1 2 . XP Earned 10150 | 3000 500 1100 350 2400 1850 950 XP Spent 4620 | 1500 800 280 . . 2040 . Upgrades 14 | 3 1 6 . . 4 . Propulsion Slot 1 | 1 . . . . . . Utility Slot 3 | 1 . . . . 2 . Weapon Slot 2 | 1 1 . . . . . Core Integrity 6 | . . 4 . . 2 . Heat Dissipation 2 | . . 2 . . . . Protomatter Created 187 | . 42 59 . 35 . 51 Integrity Restored 444 | . 12 177 . 192 . 63 Core 444 | . 12 177 . 192 . 63 Protomatter Decayed 9 | . . . 7 2 . . Game ------ Seed PulseEnhancedActivator Manual? 0 Play Time 00:51:43 Cumulative 47.2 hours Start 2026.07.01 @ 22:30:20 End 2026.07.01 @ 23:30:13 Sessions 1 Manual Loads 0 Difficulty Rogue Special Mode Winter2019/RPGLIKE Game No. 28 Rogue 28 Adventurer 0 Explorer 0 Win Type - Total 0 Types 0/0/0/0/0/0/0/0/0/0 Lore% 34 Gallery% 27 Achievement% 25 Wizard Run 0 Options --------- Layout 2 ASCII 0 Keyboard 0 Movement Numpad Keybinds 0 Fullscreen 1 Font 24/Smallcaps Map View 50x44 Zoom Use 0% Tactical HUD 1 Map Filters NONE Filters NONE Steam 1 RUN: be0cf6c4-e952-4ca7-b324-262d4b15ac2c